[Event "Titled Tuesday Blitz December 14 2021"]
[White "Gabrielian, Artur"]
[Black "Altman, Joshua"]
[WhiteFideId "4131002"]
[BlackFideId "426210"]
[WhiteElo "2440"]
[BlackElo "1945"]
[Result "1-0"]
[Round "02"]
[TimeControl "180+1"]
[Date "2021.12.15"]
[WhiteClock "0:00:35"]
[BlackClock "0:00:02"]

1. e4 {[%clk 0:03:00]}  e6 {[%clk 0:03:00]} 2. d3 {[%clk 0:03:00]}  d5 {[%clk 0:03:01]} 3. Qe2 {[%clk 0:03:01]}  Be7 {[%clk 0:03:00]} 4. Nf3 {[%clk 0:03:01]}  c5 {[%clk 0:03:01]} 5. g3 {[%clk 0:03:02]}  Nf6 {[%clk 0:03:00]} 6. Bg2 {[%clk 0:03:02]}  Nc6 {[%clk 0:03:01]} 7. O-O {[%clk 0:03:03]}  Qc7 {[%clk 0:03:00]} 8. e5 {[%clk 0:03:02]}  Nd7 {[%clk 0:03:00]} 9. Re1 {[%clk 0:03:02]}  b6 {[%clk 0:03:00]} 10. c4 {[%clk 0:03:02]}  d4 {[%clk 0:03:00]} 11. a3 {[%clk 0:03:01]}  Bb7 {[%clk 0:02:56]} 12. h4 {[%clk 0:03:01]}  h6 {[%clk 0:02:56]} 13. h5 {[%clk 0:03:00]}  O-O-O {[%clk 0:02:40]} 14. Nbd2 {[%clk 0:02:59]}  a5 {[%clk 0:02:35]} 15. Rb1 {[%clk 0:02:54]}  Rdg8 {[%clk 0:02:35]} 16. Nf1 {[%clk 0:02:39]}  g6 {[%clk 0:02:34]} 17. hxg6 {[%clk 0:02:38]}  fxg6 {[%clk 0:02:15]} 18. Bh3 {[%clk 0:02:38]}  Nd8 {[%clk 0:02:15]} 19. b4 {[%clk 0:02:36]}  g5 {[%clk 0:02:13]} 20. Bg2 {[%clk 0:02:33]}  g4 {[%clk 0:02:00]} 21. N3d2 {[%clk 0:02:33]}  Bxg2 {[%clk 0:01:59]} 22. Kxg2 {[%clk 0:02:33]}  axb4 {[%clk 0:01:54]} 23. axb4 {[%clk 0:02:33]}  h5 {[%clk 0:01:52]} 24. bxc5 {[%clk 0:02:33]}  Nxc5 {[%clk 0:01:51]} 25. Ne4 {[%clk 0:02:32]}  h4 {[%clk 0:01:31]} 26. Bf4 {[%clk 0:02:31]}  Qc6 {[%clk 0:01:25]} 27. Kg1 {[%clk 0:02:29]}  hxg3 {[%clk 0:01:24]} 28. Nfxg3 {[%clk 0:02:29]}  Rh3 {[%clk 0:01:18]} 29. Nxc5 {[%clk 0:02:25]}  Bxc5 {[%clk 0:01:14]} 30. Qe4 {[%clk 0:02:25]}  Rgh8 {[%clk 0:01:10]} 31. Ra1 {[%clk 0:02:10]}  Qxe4 {[%clk 0:01:08]} 32. Rxe4 {[%clk 0:02:06]}  Kb7 {[%clk 0:01:08]} 33. Ree1 {[%clk 0:01:56]}  Nc6 {[%clk 0:01:07]} 34. Rad1 {[%clk 0:01:31]}  Ne7 {[%clk 0:00:59]} 35. Ne4 {[%clk 0:01:26]}  Nf5 {[%clk 0:00:46]} 36. Bg3 {[%clk 0:01:26]}  Be7 {[%clk 0:00:29]} 37. Rb1 {[%clk 0:01:23]}  Nxg3 {[%clk 0:00:27]} 38. Nxg3 {[%clk 0:01:23]}  Bh4 {[%clk 0:00:27]} 39. Ne4 {[%clk 0:01:16]}  Be7 {[%clk 0:00:17]} 40. Ng3 {[%clk 0:01:06]}  Bh4 {[%clk 0:00:17]} 41. Ne4 {[%clk 0:01:05]}  Be7 {[%clk 0:00:10]} 42. Red1 {[%clk 0:00:56]}  Rh1+ {[%clk 0:00:09]} 43. Kg2 {[%clk 0:00:57]}  R8h2+ {[%clk 0:00:10]} 44. Kg3 {[%clk 0:00:57]}  Bh4+ {[%clk 0:00:10]} 45. Kxg4 {[%clk 0:00:57]}  Rxd1 {[%clk 0:00:06]} 46. Rxd1 {[%clk 0:00:57]}  Bxf2 {[%clk 0:00:07]} 47. Rf1 {[%clk 0:00:51]}  Be3 {[%clk 0:00:04]} 48. Rf6 {[%clk 0:00:51]}  Rg2+ {[%clk 0:00:04]} 49. Kf3 {[%clk 0:00:49]}  Rg1 {[%clk 0:00:03]} 50. Rxe6 {[%clk 0:00:49]}  Rd1 {[%clk 0:00:04]} 51. Ke2 {[%clk 0:00:48]}  Ra1 {[%clk 0:00:04]} 52. Nd6+ {[%clk 0:00:48]}  Ka6 {[%clk 0:00:04]} 53. Nb5 {[%clk 0:00:47]}  Ra2+ {[%clk 0:00:04]} 54. Kf3 {[%clk 0:00:48]}  Rf2+ {[%clk 0:00:04]} 55. Kg4 {[%clk 0:00:48]}  Ka5 {[%clk 0:00:05]} 56. Rd6 {[%clk 0:00:41]}  Rd2 {[%clk 0:00:05]} 57. Nxd4 {[%clk 0:00:38]}  Bxd4 {[%clk 0:00:02]} 58. Rxd4 {[%clk 0:00:38]}  Kb4 {[%clk 0:00:03]} 59. Rd5 {[%clk 0:00:35]}  Kc3 {[%clk 0:00:03]} 60. e6 {[%clk 0:00:35]}  Re2 {[%clk 0:00:03]} 61. Kf5 {[%clk 0:00:35]}  Re1 {[%clk 0:00:02]} 62. Kf6 {[%clk 0:00:35]}  b5 {[%clk 0:00:02]} 1-0


[Site "https://www.chess.com"]

[Event "Titled Tuesday Blitz December 14 2021"]
[White "Golubev, Mikhail"]
[Black "Bluebaum, Matthias"]
[WhiteFideId "14100983"]
[BlackFideId "24651516"]
[WhiteElo "2374"]
[BlackElo "2609"]
[Result "1/2-1/2"]
[Round "02"]
[TimeControl "180+1"]
[Date "2021.12.14"]
[WhiteClock "0:00:29"]
[BlackClock "0:00:23"]

1. e4 {[%clk 0:03:00]}  e6 {[%clk 0:03:00]} 2. d4 {[%clk 0:02:56]}  d5 {[%clk 0:03:00]} 3. Nc3 {[%clk 0:02:57]}  Nf6 {[%clk 0:02:58]} 4. Bg5 {[%clk 0:02:56]}  h6 {[%clk 0:02:56]} 5. Bxf6 {[%clk 0:02:52]}  Qxf6 {[%clk 0:02:57]} 6. exd5 {[%clk 0:02:50]}  Bb4 {[%clk 0:02:57]} 7. Qd2 {[%clk 0:02:44]}  exd5 {[%clk 0:02:52]} 8. O-O-O {[%clk 0:02:41]}  c6 {[%clk 0:02:51]} 9. Nf3 {[%clk 0:02:34]}  O-O {[%clk 0:02:48]} 10. Kb1 {[%clk 0:02:32]}  Bg4 {[%clk 0:02:48]} 11. Nxd5 {[%clk 0:02:21]}  cxd5 {[%clk 0:02:47]} 12. Qxb4 {[%clk 0:02:20]}  Bxf3 {[%clk 0:02:48]} 13. gxf3 {[%clk 0:02:20]}  Nc6 {[%clk 0:02:48]} 14. Qc3 {[%clk 0:02:15]}  Rfe8 {[%clk 0:02:35]} 15. Bb5 {[%clk 0:02:13]}  Rac8 {[%clk 0:02:15]} 16. Rde1 {[%clk 0:02:01]}  Rxe1+ {[%clk 0:02:11]} 17. Rxe1 {[%clk 0:02:01]}  Qxd4 {[%clk 0:02:11]} 18. Bxc6 {[%clk 0:01:42]}  Qxc3 {[%clk 0:02:10]} 19. bxc3 {[%clk 0:01:41]}  Rxc6 {[%clk 0:02:03]} 20. Re7 {[%clk 0:01:41]}  Rb6+ {[%clk 0:01:09]} 21. Kc1 {[%clk 0:01:39]}  g5 {[%clk 0:01:09]} 22. Kd2 {[%clk 0:01:34]}  Kg7 {[%clk 0:01:06]} 23. Rd7 {[%clk 0:01:34]}  Rf6 {[%clk 0:01:05]} 24. Ke2 {[%clk 0:01:30]}  Ra6 {[%clk 0:00:55]} 25. Rxb7 {[%clk 0:01:29]}  Rxa2 {[%clk 0:00:55]} 26. Kd3 {[%clk 0:01:29]}  Ra1 {[%clk 0:00:47]} 27. Rd7 {[%clk 0:01:26]}  a5 {[%clk 0:00:35]} 28. Rxd5 {[%clk 0:01:25]}  a4 {[%clk 0:00:36]} 29. Ra5 {[%clk 0:01:24]}  a3 {[%clk 0:00:36]} 30. c4 {[%clk 0:01:18]}  Kf6 {[%clk 0:00:31]} 31. Kc3 {[%clk 0:01:13]}  h5 {[%clk 0:00:27]} 32. c5 {[%clk 0:01:11]}  Ke6 {[%clk 0:00:27]} 33. c6 {[%clk 0:01:11]}  Rf1 {[%clk 0:00:18]} 34. Rxa3 {[%clk 0:01:05]}  Kd6 {[%clk 0:00:18]} 35. Ra5 {[%clk 0:00:57]}  f6 {[%clk 0:00:18]} 36. Rf5 {[%clk 0:00:56]}  Kxc6 {[%clk 0:00:16]} 37. Rxf6+ {[%clk 0:00:56]}  Kd7 {[%clk 0:00:17]} 38. Rf5 {[%clk 0:00:46]}  Rxf2 {[%clk 0:00:17]} 39. Rxg5 {[%clk 0:00:43]}  Rxh2 {[%clk 0:00:18]} 40. f4 {[%clk 0:00:41]}  h4 {[%clk 0:00:18]} 41. Rh5 {[%clk 0:00:38]}  h3 {[%clk 0:00:18]} 42. Rh6 {[%clk 0:00:35]}  Rh1 {[%clk 0:00:18]} 43. Kb2 {[%clk 0:00:33]}  Ke7 {[%clk 0:00:19]} 44. c4 {[%clk 0:00:33]}  Kd7 {[%clk 0:00:17]} 45. c5 {[%clk 0:00:33]}  Kc7 {[%clk 0:00:16]} 46. f5 {[%clk 0:00:31]}  Rf1 {[%clk 0:00:16]} 47. Rxh3 {[%clk 0:00:28]}  Rxf5 {[%clk 0:00:16]} 48. Rc3 {[%clk 0:00:28]}  Kc6 {[%clk 0:00:16]} 49. Rc4 {[%clk 0:00:28]}  Rf3 {[%clk 0:00:17]} 50. Rc3 {[%clk 0:00:28]}  Rf2+ {[%clk 0:00:17]} 51. Rc2 {[%clk 0:00:28]}  Rf1 {[%clk 0:00:18]} 52. Rc1 {[%clk 0:00:28]}  Rf2+ {[%clk 0:00:19]} 53. Rc2 {[%clk 0:00:28]}  Rf4 {[%clk 0:00:20]} 54. Rc3 {[%clk 0:00:29]}  Rf8 {[%clk 0:00:20]} 55. Rc2 {[%clk 0:00:29]}  Rg8 {[%clk 0:00:21]} 56. Rc3 {[%clk 0:00:29]}  Rb8+ {[%clk 0:00:21]} 57. Kc2 {[%clk 0:00:28]}  Rh8 {[%clk 0:00:22]} 58. Rc4 {[%clk 0:00:28]}  Rh3 {[%clk 0:00:22]} 59. Rc3 {[%clk 0:00:29]}  Rxc3+ {[%clk 0:00:23]} 60. Kxc3 {[%clk 0:00:29]}  Kxc5 {[%clk 0:00:23]} 1/2-1/2


[Site "https://www.chess.com"]

[Event "Titled Tuesday Blitz December 14 2021"]
[White "Grigoriants, Sergey"]
[Black "Shapiro, David"]
[WhiteFideId "4130804"]
[BlackFideId "24133523"]
[WhiteElo "2502"]
[BlackElo "2320"]
[Result "1-0"]
[Round "02"]
[TimeControl "180+1"]
[Date "2021.12.14"]
[WhiteClock "0:00:16"]
[BlackClock "0:00:08"]

1. e4 {[%clk 0:02:26]}  e5 {[%clk 0:02:30]} 2. Nf3 {[%clk 0:02:25]}  Nf6 {[%clk 0:02:30]} 3. Nxe5 {[%clk 0:02:22]}  d6 {[%clk 0:02:31]} 4. Nd3 {[%clk 0:02:22]}  Nxe4 {[%clk 0:02:31]} 5. Qe2 {[%clk 0:02:23]}  Qe7 {[%clk 0:02:31]} 6. Nf4 {[%clk 0:02:23]}  Nc6 {[%clk 0:02:30]} 7. Nd5 {[%clk 0:02:22]}  Nd4 {[%clk 0:02:26]} 8. Nxe7 {[%clk 0:02:18]}  Nxe2 {[%clk 0:02:25]} 9. Nd5 {[%clk 0:02:14]}  Nd4 {[%clk 0:02:18]} 10. d3 {[%clk 0:02:07]}  Nf6 {[%clk 0:02:07]} 11. Nxf6+ {[%clk 0:02:07]}  gxf6 {[%clk 0:02:08]} 12. Na3 {[%clk 0:01:59]}  d5 {[%clk 0:01:41]} 13. Be3 {[%clk 0:01:59]}  Bb4+ {[%clk 0:01:28]} 14. Kd1 {[%clk 0:01:29]}  Bg4+ {[%clk 0:01:27]} 15. Kc1 {[%clk 0:01:29]}  Nf5 {[%clk 0:01:21]} 16. Bf4 {[%clk 0:01:22]}  O-O-O {[%clk 0:01:19]} 17. c3 {[%clk 0:01:09]}  Bd6 {[%clk 0:00:48]} 18. Bxd6 {[%clk 0:01:06]}  Nxd6 {[%clk 0:00:49]} 19. Nc2 {[%clk 0:01:04]}  Rhe8 {[%clk 0:00:47]} 20. h3 {[%clk 0:01:02]}  Bf5 {[%clk 0:00:45]} 21. Kd2 {[%clk 0:00:58]}  c5 {[%clk 0:00:43]} 22. Re1 {[%clk 0:00:56]}  Rxe1 {[%clk 0:00:40]} 23. Nxe1 {[%clk 0:00:55]}  d4 {[%clk 0:00:34]} 24. c4 {[%clk 0:00:53]}  Bd7 {[%clk 0:00:32]} 25. g3 {[%clk 0:00:50]}  Bc6 {[%clk 0:00:33]} 26. Bg2 {[%clk 0:00:50]}  Kc7 {[%clk 0:00:31]} 27. Bxc6 {[%clk 0:00:47]}  Kxc6 {[%clk 0:00:32]} 28. Ng2 {[%clk 0:00:46]}  Re8 {[%clk 0:00:33]} 29. Nf4 {[%clk 0:00:45]}  Re5 {[%clk 0:00:20]} 30. Rb1 {[%clk 0:00:41]}  a5 {[%clk 0:00:19]} 31. b3 {[%clk 0:00:36]}  Ne8 {[%clk 0:00:15]} 32. a3 {[%clk 0:00:36]}  Nc7 {[%clk 0:00:15]} 33. b4 {[%clk 0:00:36]}  axb4 {[%clk 0:00:15]} 34. axb4 {[%clk 0:00:37]}  b6 {[%clk 0:00:16]} 35. bxc5 {[%clk 0:00:34]}  bxc5 {[%clk 0:00:17]} 36. Rb8 {[%clk 0:00:34]}  Re8 {[%clk 0:00:17]} 37. Rxe8 {[%clk 0:00:31]}  Nxe8 {[%clk 0:00:18]} 38. Nd5 {[%clk 0:00:31]}  Kd6 {[%clk 0:00:19]} 39. Ke2 {[%clk 0:00:26]}  Ke5 {[%clk 0:00:18]} 40. Nb6 {[%clk 0:00:23]}  Kd6 {[%clk 0:00:12]} 41. Kf3 {[%clk 0:00:23]}  Nc7 {[%clk 0:00:11]} 42. Kf4 {[%clk 0:00:20]}  Kc6 {[%clk 0:00:12]} 43. Na4 {[%clk 0:00:19]}  Kd6 {[%clk 0:00:09]} 44. Kf5 {[%clk 0:00:18]}  Ne8 {[%clk 0:00:10]} 45. h4 {[%clk 0:00:17]}  h5 {[%clk 0:00:08]} 46. g4 {[%clk 0:00:16]}  hxg4 {[%clk 0:00:08]} 47. Kxg4 {[%clk 0:00:16]}  Ke6 {[%clk 0:00:08]} 48. Nxc5+ {[%clk 0:00:16]} 1-0


[Site "https://www.chess.com"]

[Event "Titled Tuesday Blitz December 14 2021"]
[White "Hamley, Ryan"]
[Black "Zierk, Steven"]
[WhiteFideId "30959497"]
[BlackFideId "2034255"]
[WhiteElo "2565"]
[BlackElo "2494"]
[Result "0-1"]
[Round "02"]
[TimeControl "180+1"]
[Date "2021.12.14"]
[WhiteClock "0:00:10"]
[BlackClock "0:00:36"]

1. d4 {[%clk 0:03:00]}  d5 {[%clk 0:02:57]} 2. c4 {[%clk 0:03:00]}  dxc4 {[%clk 0:02:58]} 3. e3 {[%clk 0:03:00]}  e6 {[%clk 0:02:56]} 4. Bxc4 {[%clk 0:02:59]}  Nf6 {[%clk 0:02:57]} 5. Nf3 {[%clk 0:03:00]}  c5 {[%clk 0:02:56]} 6. O-O {[%clk 0:02:59]}  a6 {[%clk 0:02:57]} 7. dxc5 {[%clk 0:02:58]}  Qxd1 {[%clk 0:02:55]} 8. Rxd1 {[%clk 0:02:58]}  Bxc5 {[%clk 0:02:56]} 9. b3 {[%clk 0:02:56]}  O-O {[%clk 0:02:53]} 10. Bb2 {[%clk 0:02:56]}  Nbd7 {[%clk 0:02:52]} 11. Nc3 {[%clk 0:02:53]}  b5 {[%clk 0:02:48]} 12. Be2 {[%clk 0:02:52]}  Bb7 {[%clk 0:02:48]} 13. Nd4 {[%clk 0:02:52]}  Rac8 {[%clk 0:02:35]} 14. Rac1 {[%clk 0:02:43]}  Rfd8 {[%clk 0:02:23]} 15. Bf3 {[%clk 0:02:21]}  Bxf3 {[%clk 0:02:22]} 16. Nxf3 {[%clk 0:02:21]}  Be7 {[%clk 0:02:16]} 17. Kf1 {[%clk 0:02:19]}  Nc5 {[%clk 0:02:13]} 18. Ke2 {[%clk 0:02:18]}  Kf8 {[%clk 0:02:13]} 19. Ne5 {[%clk 0:02:16]}  Ke8 {[%clk 0:02:11]} 20. h3 {[%clk 0:01:56]}  Rxd1 {[%clk 0:02:08]} 21. Rxd1 {[%clk 0:01:55]}  Nce4 {[%clk 0:02:09]} 22. Nxe4 {[%clk 0:01:46]}  Nxe4 {[%clk 0:02:08]} 23. Rd3 {[%clk 0:01:47]}  Bf6 {[%clk 0:02:01]} 24. Bd4 {[%clk 0:01:15]}  Rc2+ {[%clk 0:01:57]} 25. Kf3 {[%clk 0:01:16]}  Bxe5 {[%clk 0:01:43]} 26. Bxe5 {[%clk 0:00:55]}  f5 {[%clk 0:01:42]} 27. Bg3 {[%clk 0:00:55]}  e5 {[%clk 0:01:23]} 28. Bh4 {[%clk 0:00:40]}  g5 {[%clk 0:00:50]} 29. Rd5 {[%clk 0:00:38]}  Kf7 {[%clk 0:00:44]} 30. g4 {[%clk 0:00:19]}  Ke6 {[%clk 0:00:36]} 31. Rd8 {[%clk 0:00:15]}  gxh4 {[%clk 0:00:36]} 32. gxf5+ {[%clk 0:00:14]}  Kxf5 {[%clk 0:00:35]} 33. Rf8+ {[%clk 0:00:10]}  Nf6 {[%clk 0:00:36]} 34. e4+ {[%clk 0:00:10]}  Kg6 {[%clk 0:00:36]} 0-1


[Site "https://www.chess.com"]

[Event "Titled Tuesday Blitz December 14 2021"]
[White "Harshavardhan G B"]
[Black "Chigaev, Maksim"]
[WhiteFideId "25059009"]
[BlackFideId "4108116"]
[WhiteElo "1825"]
[BlackElo "2546"]
[Result "0-1"]
[Round "02"]
[TimeControl "180+1"]
[Date "2021.12.14"]
[WhiteClock "0:00:18"]
[BlackClock "0:00:11"]

1. Nf3 {[%clk 0:03:00]}  Nf6 {[%clk 0:03:00]} 2. c4 {[%clk 0:02:58]}  e6 {[%clk 0:03:00]} 3. g3 {[%clk 0:02:55]}  d5 {[%clk 0:03:00]} 4. Bg2 {[%clk 0:02:54]}  Be7 {[%clk 0:03:00]} 5. O-O {[%clk 0:02:52]}  O-O {[%clk 0:03:01]} 6. b3 {[%clk 0:02:52]}  b6 {[%clk 0:03:01]} 7. Bb2 {[%clk 0:02:52]}  Bb7 {[%clk 0:03:01]} 8. e3 {[%clk 0:02:52]}  c5 {[%clk 0:03:01]} 9. Re1 {[%clk 0:02:51]}  Qc8 {[%clk 0:02:57]} 10. Nc3 {[%clk 0:02:50]}  Rd8 {[%clk 0:02:56]} 11. cxd5 {[%clk 0:02:50]}  Nxd5 {[%clk 0:02:56]} 12. Nxd5 {[%clk 0:02:49]}  Bxd5 {[%clk 0:02:56]} 13. d4 {[%clk 0:02:49]}  Nd7 {[%clk 0:02:51]} 14. Rc1 {[%clk 0:02:48]}  Bb7 {[%clk 0:02:11]} 15. e4 {[%clk 0:02:46]}  Nf6 {[%clk 0:02:08]} 16. Nh4 {[%clk 0:02:07]}  Qd7 {[%clk 0:01:55]} 17. e5 {[%clk 0:02:03]}  Nd5 {[%clk 0:01:49]} 18. Qg4 {[%clk 0:01:59]}  cxd4 {[%clk 0:01:37]} 19. Be4 {[%clk 0:01:54]}  Rac8 {[%clk 0:01:24]} 20. Bxd4 {[%clk 0:01:40]}  Rxc1 {[%clk 0:01:10]} 21. Rxc1 {[%clk 0:01:40]}  Nb4 {[%clk 0:01:05]} 22. Be3 {[%clk 0:01:34]}  Bxe4 {[%clk 0:00:58]} 23. Qxe4 {[%clk 0:01:35]}  Nxa2 {[%clk 0:00:56]} 24. Rc4 {[%clk 0:01:25]}  b5 {[%clk 0:00:54]} 25. Rd4 {[%clk 0:01:24]}  Qc8 {[%clk 0:00:52]} 26. Rxd8+ {[%clk 0:01:16]}  Qxd8 {[%clk 0:00:53]} 27. Nf3 {[%clk 0:01:13]}  a5 {[%clk 0:00:34]} 28. Qb7 {[%clk 0:01:10]}  Nc3 {[%clk 0:00:29]} 29. Nd4 {[%clk 0:01:08]}  Bc5 {[%clk 0:00:15]} 30. Nxe6 {[%clk 0:00:17]}  fxe6 {[%clk 0:00:16]} 31. Bxc5 {[%clk 0:00:17]}  Qd1+ {[%clk 0:00:16]} 32. Kg2 {[%clk 0:00:17]}  Qd5+ {[%clk 0:00:17]} 33. Qxd5 {[%clk 0:00:17]}  Nxd5 {[%clk 0:00:18]} 34. Kf3 {[%clk 0:00:18]}  a4 {[%clk 0:00:18]} 35. bxa4 {[%clk 0:00:18]}  bxa4 {[%clk 0:00:19]} 36. Ke4 {[%clk 0:00:19]}  h5 {[%clk 0:00:18]} 37. f4 {[%clk 0:00:19]}  g6 {[%clk 0:00:14]} 38. Kd4 {[%clk 0:00:19]}  Kf7 {[%clk 0:00:13]} 39. Kc4 {[%clk 0:00:20]}  h4 {[%clk 0:00:05]} 40. Bd4 {[%clk 0:00:19]}  h3 {[%clk 0:00:04]} 41. Kb5 {[%clk 0:00:18]}  a3 {[%clk 0:00:04]} 42. Ka4 {[%clk 0:00:18]}  g5 {[%clk 0:00:05]} 43. fxg5 {[%clk 0:00:17]}  Kg6 {[%clk 0:00:05]} 44. Kxa3 {[%clk 0:00:18]}  Kxg5 {[%clk 0:00:06]} 45. Ka4 {[%clk 0:00:18]}  Kg4 {[%clk 0:00:07]} 46. Kb5 {[%clk 0:00:19]}  Kf3 {[%clk 0:00:07]} 47. Kc6 {[%clk 0:00:19]}  Kg2 {[%clk 0:00:08]} 48. Kd6 {[%clk 0:00:19]}  Kxh2 {[%clk 0:00:09]} 49. Kxe6 {[%clk 0:00:19]}  Kxg3 {[%clk 0:00:03]} 50. Kxd5 {[%clk 0:00:18]}  h2 {[%clk 0:00:03]} 51. e6 {[%clk 0:00:19]}  h1=Q+ {[%clk 0:00:04]} 52. Kd6 {[%clk 0:00:19]}  Qb7 {[%clk 0:00:02]} 53. e7 {[%clk 0:00:19]}  Qb5 {[%clk 0:00:02]} 54. Ke6 {[%clk 0:00:18]}  Qe8 {[%clk 0:00:03]} 55. Be5+ {[%clk 0:00:18]}  Kg4 {[%clk 0:00:04]} 56. Kd6 {[%clk 0:00:18]}  Kf3 {[%clk 0:00:05]} 57. Ke6 {[%clk 0:00:17]}  Ke4 {[%clk 0:00:06]} 58. Bd6 {[%clk 0:00:17]}  Kd4 {[%clk 0:00:06]} 59. Ba3 {[%clk 0:00:17]}  Kc4 {[%clk 0:00:06]} 60. Ke5 {[%clk 0:00:16]}  Kb5 {[%clk 0:00:07]} 61. Kd6 {[%clk 0:00:16]}  Kb6 {[%clk 0:00:06]} 62. Bc5+ {[%clk 0:00:15]}  Kb7 {[%clk 0:00:07]} 63. Ba3 {[%clk 0:00:16]}  Kc8 {[%clk 0:00:07]} 64. Ke6 {[%clk 0:00:16]}  Kc7 {[%clk 0:00:08]} 65. Bd6+ {[%clk 0:00:15]}  Kc6 {[%clk 0:00:08]} 66. Be5 {[%clk 0:00:16]}  Qg8+ {[%clk 0:00:08]} 67. Kf6 {[%clk 0:00:15]}  Kd7 {[%clk 0:00:09]} 68. Bd6 {[%clk 0:00:16]}  Qe6+ {[%clk 0:00:09]} 69. Kg7 {[%clk 0:00:15]}  Kxd6 {[%clk 0:00:10]} 70. Kh8 {[%clk 0:00:16]}  Qxe7 {[%clk 0:00:09]} 71. Kg8 {[%clk 0:00:16]}  Ke6 {[%clk 0:00:10]} 72. Kh8 {[%clk 0:00:17]}  Kf6 {[%clk 0:00:11]} 73. Kg8 {[%clk 0:00:18]}  Qg7# {[%clk 0:00:11]} 0-1


[Site "https://www.chess.com"]

[Event "Titled Tuesday Blitz December 14 2021"]
[White "Holt, Conrad"]
[Black "Toropov, Pavel"]
[WhiteFideId "2034387"]
[BlackFideId "24129178"]
[WhiteElo "2586"]
[BlackElo "2333"]
[Result "1-0"]
[Round "02"]
[TimeControl "180+1"]
[Date "2021.12.14"]
[WhiteClock "0:02:25"]
[BlackClock "0:02:02"]

1. d4 {[%clk 0:03:00]}  d5 {[%clk 0:02:58]} 2. c4 {[%clk 0:03:00]}  c6 {[%clk 0:02:58]} 3. Nc3 {[%clk 0:03:00]}  Nf6 {[%clk 0:02:58]} 4. e3 {[%clk 0:03:01]}  g6 {[%clk 0:02:56]} 5. Be2 {[%clk 0:02:58]}  Bg7 {[%clk 0:02:55]} 6. Nf3 {[%clk 0:02:59]}  Bg4 {[%clk 0:02:54]} 7. O-O {[%clk 0:02:58]}  Bxf3 {[%clk 0:02:52]} 8. Bxf3 {[%clk 0:02:57]}  O-O {[%clk 0:02:48]} 9. Qb3 {[%clk 0:02:54]}  Qb6 {[%clk 0:02:30]} 10. Qxb6 {[%clk 0:02:53]}  axb6 {[%clk 0:02:30]} 11. cxd5 {[%clk 0:02:54]}  cxd5 {[%clk 0:02:24]} 12. Nxd5 {[%clk 0:02:54]}  Nxd5 {[%clk 0:02:25]} 13. Bxd5 {[%clk 0:02:55]}  Nc6 {[%clk 0:02:25]} 14. Bd2 {[%clk 0:02:52]}  Rfd8 {[%clk 0:02:25]} 15. Bf3 {[%clk 0:02:37]}  e5 {[%clk 0:02:23]} 16. d5 {[%clk 0:02:36]}  Ne7 {[%clk 0:02:22]} 17. e4 {[%clk 0:02:35]}  Nc8 {[%clk 0:02:21]} 18. Bg5 {[%clk 0:02:32]}  f6 {[%clk 0:02:20]} 19. Be3 {[%clk 0:02:31]}  Bf8 {[%clk 0:02:18]} 20. Rfc1 {[%clk 0:02:31]}  Bd6 {[%clk 0:02:14]} 21. Bg4 {[%clk 0:02:32]}  Ne7 {[%clk 0:02:12]} 22. Be6+ {[%clk 0:02:30]}  Kh8 {[%clk 0:02:12]} 23. Bxb6 {[%clk 0:02:30]}  Rf8 {[%clk 0:02:11]} 24. a4 {[%clk 0:02:30]}  f5 {[%clk 0:02:11]} 25. Bc7 {[%clk 0:02:30]}  Ra6 {[%clk 0:02:08]} 26. Bxd6 {[%clk 0:02:28]}  Rxd6 {[%clk 0:02:08]} 27. Rc7 {[%clk 0:02:28]}  Ng8 {[%clk 0:02:05]} 28. exf5 {[%clk 0:02:26]}  gxf5 {[%clk 0:02:05]} 29. Rxb7 {[%clk 0:02:27]}  Nf6 {[%clk 0:02:05]} 30. a5 {[%clk 0:02:25]}  Nxd5 {[%clk 0:02:04]} 31. Bxd5 {[%clk 0:02:26]}  Rxd5 {[%clk 0:02:05]} 32. a6 {[%clk 0:02:26]}  Ra8 {[%clk 0:02:05]} 33. a7 {[%clk 0:02:26]}  Rdd8 {[%clk 0:02:06]} 34. h4 {[%clk 0:02:25]}  h5 {[%clk 0:02:06]} 35. Ra6 {[%clk 0:02:25]}  Rd4 {[%clk 0:02:02]} 36. Rb8+ {[%clk 0:02:25]} 1-0


[Site "https://www.chess.com"]

[Event "Titled Tuesday Blitz December 14 2021"]
[White "Jakubowski, Krzysztof"]
[Black "Dobrov, Vladimir"]
[WhiteFideId "1112848"]
[BlackFideId "4136594"]
[WhiteElo "2373"]
[BlackElo "2614"]
[Result "0-1"]
[Round "02"]
[TimeControl "180+1"]
[Date "2021.12.15"]
[WhiteClock "0:00:01"]
[BlackClock "0:00:17"]

1. e4 {[%clk 0:03:00]}  c5 {[%clk 0:02:59]} 2. Nf3 {[%clk 0:03:00]}  Nc6 {[%clk 0:02:59]} 3. d4 {[%clk 0:02:59]}  cxd4 {[%clk 0:03:00]} 4. Nxd4 {[%clk 0:03:00]}  Qb6 {[%clk 0:02:59]} 5. Nb3 {[%clk 0:02:59]}  Nf6 {[%clk 0:02:59]} 6. Nc3 {[%clk 0:02:58]}  e6 {[%clk 0:02:59]} 7. Qe2 {[%clk 0:02:58]}  Bb4 {[%clk 0:02:59]} 8. Bd2 {[%clk 0:02:57]}  a5 {[%clk 0:02:59]} 9. a3 {[%clk 0:02:52]}  Bxc3 {[%clk 0:02:59]} 10. Bxc3 {[%clk 0:02:53]}  e5 {[%clk 0:02:59]} 11. O-O-O {[%clk 0:02:43]}  O-O {[%clk 0:02:58]} 12. f3 {[%clk 0:02:18]}  Rd8 {[%clk 0:02:54]} 13. Rd6 {[%clk 0:02:09]}  Ne8 {[%clk 0:02:53]} 14. Rd5 {[%clk 0:02:05]}  d6 {[%clk 0:02:54]} 15. Nd2 {[%clk 0:01:57]}  Be6 {[%clk 0:02:53]} 16. Nc4 {[%clk 0:01:56]}  Qc7 {[%clk 0:02:53]} 17. Ne3 {[%clk 0:01:44]}  Nf6 {[%clk 0:02:49]} 18. Rd2 {[%clk 0:01:32]}  Nb4 {[%clk 0:02:39]} 19. Kb1 {[%clk 0:01:18]}  Na2 {[%clk 0:02:35]} 20. Nd1 {[%clk 0:01:13]}  b5 {[%clk 0:02:27]} 21. Rd3 {[%clk 0:01:05]}  b4 {[%clk 0:02:25]} 22. Be1 {[%clk 0:01:02]}  Rab8 {[%clk 0:01:22]} 23. a4 {[%clk 0:00:53]}  d5 {[%clk 0:01:21]} 24. b3 {[%clk 0:00:37]}  Nc3+ {[%clk 0:01:10]} 25. Nxc3 {[%clk 0:00:31]}  bxc3 {[%clk 0:01:10]} 26. Rxc3 {[%clk 0:00:29]}  Qd7 {[%clk 0:01:08]} 27. Bg3 {[%clk 0:00:23]}  d4 {[%clk 0:01:01]} 28. Rd3 {[%clk 0:00:21]}  Qxa4 {[%clk 0:00:54]} 29. Bxe5 {[%clk 0:00:13]}  Rb4 {[%clk 0:00:43]} 30. Kb2 {[%clk 0:00:05]}  Qc6 {[%clk 0:00:28]} 31. Bxf6 {[%clk 0:00:02]}  gxf6 {[%clk 0:00:29]} 32. Qd2 {[%clk 0:00:02]}  Qb6 {[%clk 0:00:18]} 33. Be2 {[%clk 0:00:02]}  a4 {[%clk 0:00:18]} 34. Ra1 {[%clk 0:00:01]}  axb3 {[%clk 0:00:18]} 35. c3 {[%clk 0:00:01]}  dxc3+ {[%clk 0:00:18]} 36. Qxc3 {[%clk 0:00:01]}  Rc8 {[%clk 0:00:17]} 0-1


[Site "https://www.chess.com"]